[Event "*** SCC Grand Prix: Titled Tuesday Blitz"]
[Site "Chess.com"]
[Date "2020.09.29"]
[Round "8"]
[White "Maghalashvili"]
[Black "DariaVoit"]
[Result "1/2-1/2"]
[WhiteElo "2699"]
[BlackElo "2493"]
[TimeControl "180+1"]
[EndTime "11:35:41 PDT"]
[Termination "Game drawn by repetition"]

1. Nf3 {[%clk 0:03:00]} 1... Nf6 {[%clk 0:02:55.7]} 2. g3 {[%clk 0:03:00.2]}
2... g6 {[%clk 0:02:56.3]} 3. Bg2 {[%clk 0:03:01.1]} 3... Bg7 {[%clk 0:02:56.9]}
4. O-O {[%clk 0:03:02]} 4... O-O {[%clk 0:02:57.3]} 5. c4 {[%clk 0:03:02.9]}
5... c6 {[%clk 0:02:57.1]} 6. d4 {[%clk 0:03:03.8]} 6... d5 {[%clk 0:02:57.7]}
7. cxd5 {[%clk 0:03:04.6]} 7... cxd5 {[%clk 0:02:57.6]} 8. Ne5 {[%clk
0:03:05.5]} 8... e6 {[%clk 0:02:56.2]} 9. Nc3 {[%clk 0:03:05]} 9... Nfd7 {[%clk
0:02:56.7]} 10. f4 {[%clk 0:03:05.6]} 10... Nc6 {[%clk 0:02:56.2]} 11. Be3
{[%clk 0:03:05.4]} 11... Nb6 {[%clk 0:02:53.3]} 12. Rc1 {[%clk 0:03:04.1]} 12...
Bd7 {[%clk 0:02:53.1]} 13. b3 {[%clk 0:03:03.7]} 13... f6 {[%clk 0:02:52.5]} 14.
Nd3 {[%clk 0:03:03.3]} 14... Ne7 {[%clk 0:02:44.2]} 15. Kh1 {[%clk 0:03:01.3]}
15... Nf5 {[%clk 0:02:43.1]} 16. Bg1 {[%clk 0:03:01.2]} 16... Qe7 {[%clk
0:02:36.5]} 17. Nc5 {[%clk 0:02:57.9]} 17... Bc6 {[%clk 0:02:36.5]} 18. g4
{[%clk 0:02:50.4]} 18... Nh4 {[%clk 0:02:34.5]} 19. e3 {[%clk 0:02:40]} 19...
Nxg2 {[%clk 0:02:33.5]} 20. Kxg2 {[%clk 0:02:40.9]} 20... Nd7 {[%clk 0:02:33.6]}
21. Nxd7 {[%clk 0:02:35.9]} 21... Qxd7 {[%clk 0:02:32.7]} 22. Bf2 {[%clk
0:02:35.6]} 22... e5 {[%clk 0:02:30]} 23. Bg3 {[%clk 0:02:29.5]} 23... exd4
{[%clk 0:02:25.9]} 24. exd4 {[%clk 0:02:27.3]} 24... f5 {[%clk 0:02:23]} 25. g5
{[%clk 0:02:24.2]} 25... Rfe8 {[%clk 0:02:20]} 26. Qd2 {[%clk 0:02:10]} 26...
Re7 {[%clk 0:02:08]} 27. Rfe1 {[%clk 0:02:04.8]} 27... Rae8 {[%clk 0:02:08.3]}
28. Rxe7 {[%clk 0:02:04.6]} 28... Rxe7 {[%clk 0:02:08.6]} 29. Re1 {[%clk
0:02:03.6]} 29... Rxe1 {[%clk 0:02:04.5]} 30. Bxe1 {[%clk 0:02:04.5]} 30... Qd6
{[%clk 0:02:04.3]} 31. Bf2 {[%clk 0:02:02.7]} 31... Kf7 {[%clk 0:01:58.3]} 32.
Ne2 {[%clk 0:01:56.4]} 32... Bb5 {[%clk 0:01:49.6]} 33. Ng1 {[%clk 0:01:56.1]}
33... Qa6 {[%clk 0:01:42.4]} 34. Qc2 {[%clk 0:01:45.5]} 34... Bf1+ {[%clk
0:01:33.6]} 35. Kg3 {[%clk 0:01:44]} 35... Qd3+ {[%clk 0:01:24.1]} 36. Qxd3
{[%clk 0:01:43.5]} 36... Bxd3 {[%clk 0:01:25]} 37. Nf3 {[%clk 0:01:40.3]} 37...
Bb1 {[%clk 0:01:22.3]} 38. a3 {[%clk 0:01:38.8]} 38... Bf8 {[%clk 0:01:21]} 39.
Ne5+ {[%clk 0:01:31.6]} 39... Ke6 {[%clk 0:01:20.5]} 40. b4 {[%clk 0:01:30.7]}
40... a5 {[%clk 0:01:11]} 41. Be1 {[%clk 0:01:29.1]} 41... Bd6 {[%clk
0:00:50.3]} 42. Bd2 {[%clk 0:01:16.9]} 42... Bc2 {[%clk 0:00:46.4]} 43. Kf2
{[%clk 0:01:06.7]} 43... Bxe5 {[%clk 0:00:29.4]} 44. fxe5 {[%clk 0:01:04.7]}
44... a4 {[%clk 0:00:23.5]} 45. b5 {[%clk 0:00:51]} 45... b6 {[%clk 0:00:16.3]}
46. Ke3 {[%clk 0:00:50.4]} 46... Bb3 {[%clk 0:00:15.6]} 47. Ba5 {[%clk
0:00:46.4]} 47... Bc4 {[%clk 0:00:05.7]} 48. Bxb6 {[%clk 0:00:45.6]} 48... Bxb5
{[%clk 0:00:06.2]} 49. Bc5 {[%clk 0:00:46.4]} 49... Bc4 {[%clk 0:00:06.4]} 50.
h4 {[%clk 0:00:45.6]} 50... Bb3 {[%clk 0:00:06.6]} 51. Bb4 {[%clk 0:00:44]}
51... Bc4 {[%clk 0:00:06.6]} 52. Be1 {[%clk 0:00:44]} 52... Bb3 {[%clk
0:00:06.5]} 53. Bg3 {[%clk 0:00:44.4]} 53... Bc4 {[%clk 0:00:07]} 54. Kd2 {[%clk
0:00:44.4]} 54... Bb3 {[%clk 0:00:04.2]} 55. Kc3 {[%clk 0:00:44.7]} 55... Kd7
{[%clk 0:00:04.2]} 56. Kb4 {[%clk 0:00:45.6]} 56... Kc6 {[%clk 0:00:04]} 57. Bf4
{[%clk 0:00:44.3]} 57... Bc2 {[%clk 0:00:04.2]} 58. Ka5 {[%clk 0:00:43]} 58...
Bb3 {[%clk 0:00:04.2]} 59. Ka6 {[%clk 0:00:42.1]} 59... Bc4+ {[%clk 0:00:04.7]}
60. Ka7 {[%clk 0:00:41.9]} 60... Kd7 {[%clk 0:00:04.8]} 61. Kb6 {[%clk
0:00:41.5]} 61... Bb3 {[%clk 0:00:04.4]} 62. Kc5 {[%clk 0:00:41.5]} 62... Bc4
{[%clk 0:00:04.9]} 63. Kb4 {[%clk 0:00:35.9]} 63... Bb3 {[%clk 0:00:05.1]} 64.
Kb5 {[%clk 0:00:35.8]} 64... Bc2 {[%clk 0:00:05]} 65. Kb4 {[%clk 0:00:31.8]}
65... Bb3 {[%clk 0:00:05.4]} 66. Kc3 {[%clk 0:00:32.2]} 66... Bc4 {[%clk
0:00:05.6]} 67. Kd2 {[%clk 0:00:29.8]} 67... Bb3 {[%clk 0:00:06.1]} 68. h5
{[%clk 0:00:29.9]} 68... gxh5 {[%clk 0:00:04.1]} 69. Ke1 {[%clk 0:00:29.7]}
69... Ke6 {[%clk 0:00:04.1]} 70. Kf2 {[%clk 0:00:29.8]} 70... Bd1 {[%clk
0:00:03.9]} 71. Kg3 {[%clk 0:00:29.7]} 71... Kf7 {[%clk 0:00:04]} 72. Bd2 {[%clk
0:00:29.2]} 72... Ke6 {[%clk 0:00:04.3]} 73. Kf4 {[%clk 0:00:29.4]} 73... Be2
{[%clk 0:00:03.7]} 74. Be1 {[%clk 0:00:29.3]} 74... Bd1 {[%clk 0:00:03.9]} 75.
Kg3 {[%clk 0:00:29.5]} 75... Be2 {[%clk 0:00:04.3]} 76. Kh4 {[%clk 0:00:26.7]}
76... Bd1 {[%clk 0:00:04.4]} 77. Bg3 {[%clk 0:00:26.7]} 77... Be2 {[%clk
0:00:04.6]} 78. g6 {[%clk 0:00:26.9]} 78... hxg6 {[%clk 0:00:04.3]} 79. Kg5
{[%clk 0:00:27.8]} 79... Bd1 {[%clk 0:00:04.4]} 80. Kxg6 {[%clk 0:00:26.7]}
80... Be2 {[%clk 0:00:04.9]} 81. Kg5 {[%clk 0:00:26.8]} 81... Bd1 {[%clk
0:00:05.3]} 82. Bh4 {[%clk 0:00:26.9]} 82... Be2 {[%clk 0:00:05.9]} 83. Kf4
{[%clk 0:00:27]} 83... Bd1 {[%clk 0:00:06.8]} 84. Ke3 {[%clk 0:00:27.9]} 84...
Bb3 {[%clk 0:00:07.2]} 85. Bg5 {[%clk 0:00:28.1]} 85... Bc4 {[%clk 0:00:07.2]}
86. Kf3 {[%clk 0:00:26.4]} 86... Bb3 {[%clk 0:00:08.1]} 87. Ke2 {[%clk
0:00:26.6]} 87... Bc4+ {[%clk 0:00:08.2]} 88. Kd2 {[%clk 0:00:27.5]} 88... Bb3
{[%clk 0:00:08.8]} 89. Kc3 {[%clk 0:00:27.9]} 89... Bd1 {[%clk 0:00:08.8]} 90.
Kb4 {[%clk 0:00:28.8]} 90... Bb3 {[%clk 0:00:09.4]} 91. Kc5 {[%clk 0:00:28.7]}
91... Bc2 {[%clk 0:00:09.9]} 92. Kc6 {[%clk 0:00:29.1]} 92... Bb3 {[%clk
0:00:10.8]} 93. Kc7 {[%clk 0:00:29.3]} 93... Bc2 {[%clk 0:00:11.2]} 94. Kd8
{[%clk 0:00:29.4]} 94... Bb3 {[%clk 0:00:11.5]} 95. Ke8 {[%clk 0:00:29.7]} 95...
Bc2 {[%clk 0:00:11.8]} 96. Kf8 {[%clk 0:00:30.6]} 96... Bb3 {[%clk 0:00:12.2]}
97. Kg7 {[%clk 0:00:31]} 97... Bc2 {[%clk 0:00:12.8]} 98. Kh6 {[%clk 0:00:31.1]}
98... Bd1 {[%clk 0:00:13.4]} 99. Kg6 {[%clk 0:00:31.5]} 99... Be2 {[%clk
0:00:14.1]} 100. Kh6 {[%clk 0:00:31.5]} 100... Bf3 {[%clk 0:00:14.9]} 101. Bf4
{[%clk 0:00:31.7]} 101... Bg4 {[%clk 0:00:15.3]} 102. Kg5 {[%clk 0:00:32]}
102... Bf3 {[%clk 0:00:16.2]} 103. Bg3 {[%clk 0:00:32.4]} 103... Be2 {[%clk
0:00:17.1]} 104. Bh4 {[%clk 0:00:33.2]} 104... Bd1 {[%clk 0:00:17.7]} 105. Kf4
{[%clk 0:00:33.6]} 105... Bg4 {[%clk 0:00:18.1]} 106. Ke3 {[%clk 0:00:34.5]}
106... Bd1 {[%clk 0:00:18.1]} 107. Kd2 {[%clk 0:00:35.4]} 107... Bg4 {[%clk
0:00:18.6]} 108. Kc2 {[%clk 0:00:35.4]} 108... Bf3 {[%clk 0:00:19.1]} 109. Bg5
{[%clk 0:00:35.7]} 109... Bg4 {[%clk 0:00:19.1]} 110. Kc3 {[%clk 0:00:35.9]}
110... Bd1 {[%clk 0:00:18.5]} 111. Kb4 {[%clk 0:00:36.2]} 111... Bb3 {[%clk
0:00:18.5]} 112. Kc5 {[%clk 0:00:36.5]} 112... Bc2 {[%clk 0:00:18.4]} 113. Kc6
{[%clk 0:00:36.6]} 113... Bd1 {[%clk 0:00:19]} 114. Kb5 {[%clk 0:00:36.9]}
114... Bc2 {[%clk 0:00:18.5]} 115. Kb4 {[%clk 0:00:37.2]} 115... Bb3 {[%clk
0:00:18.1]} 1/2-1/2

[Event "*** SCC Grand Prix: Titled Tuesday Blitz"]
[Site "Chess.com"]
[Date "2020.09.29"]
[Round "8"]
[White "blitzking1729"]
[Black "seorobert1971"]
[Result "0-1"]
[WhiteElo "2543"]
[BlackElo "2719"]
[TimeControl "180+1"]
[EndTime "11:35:44 PDT"]
[Termination "seorobert1971 won by checkmate"]

1. d4 {[%clk 0:03:00.4]} 1... Nf6 {[%clk 0:02:59.8]} 2. Bg5 {[%clk 0:02:56.6]}
2... Ne4 {[%clk 0:02:59.5]} 3. Bf4 {[%clk 0:02:56.2]} 3... d5 {[%clk 0:02:56.9]}
4. f3 {[%clk 0:02:56.3]} 4... Nf6 {[%clk 0:02:56.9]} 5. e4 {[%clk 0:02:56.5]}
5... dxe4 {[%clk 0:02:56]} 6. Nc3 {[%clk 0:02:56.5]} 6... exf3 {[%clk
0:02:50.9]} 7. Nxf3 {[%clk 0:02:57.4]} 7... Bg4 {[%clk 0:02:49.1]} 8. Bc4 {[%clk
0:02:55]} 8... e6 {[%clk 0:02:48.8]} 9. h3 {[%clk 0:02:53.4]} 9... Bh5 {[%clk
0:02:45]} 10. g4 {[%clk 0:02:50.4]} 10... Bg6 {[%clk 0:02:44.8]} 11. Qd2 {[%clk
0:02:49.6]} 11... Nbd7 {[%clk 0:02:43.9]} 12. a3 {[%clk 0:02:48.5]} 12... Nb6
{[%clk 0:02:41.8]} 13. Bd3 {[%clk 0:02:44.8]} 13... Bxd3 {[%clk 0:02:37.2]} 14.
Qxd3 {[%clk 0:02:45.7]} 14... Bd6 {[%clk 0:02:37.1]} 15. Be5 {[%clk 0:02:34]}
15... Bxe5 {[%clk 0:02:22.6]} 16. Nxe5 {[%clk 0:02:30.7]} 16... Nfd7 {[%clk
0:02:21.4]} 17. Nf3 {[%clk 0:02:20.8]} 17... Qe7 {[%clk 0:02:17.6]} 18. O-O-O
{[%clk 0:02:18.6]} 18... O-O-O {[%clk 0:02:16.8]} 19. Rhe1 {[%clk 0:02:17.8]}
19... h6 {[%clk 0:02:13.2]} 20. d5 {[%clk 0:02:13]} 20... Nf6 {[%clk 0:02:04.4]}
21. Qb5 {[%clk 0:02:01.6]} 21... a6 {[%clk 0:02:01.9]} 22. Qb3 {[%clk
0:01:58.1]} 22... Rd6 {[%clk 0:01:52.6]} 23. dxe6 {[%clk 0:01:56.8]} 23... Rxe6
{[%clk 0:01:52.5]} 24. Rxe6 {[%clk 0:01:55]} 24... Qxe6 {[%clk 0:01:50.7]} 25.
Qxe6+ {[%clk 0:01:45.1]} 25... fxe6 {[%clk 0:01:51.6]} 26. Re1 {[%clk
0:01:45.1]} 26... Re8 {[%clk 0:01:51.1]} 27. Nd4 {[%clk 0:01:42.3]} 27... Kd7
{[%clk 0:01:50.7]} 28. Ne4 {[%clk 0:01:31.6]} 28... Nxe4 {[%clk 0:01:49.5]} 29.
Rxe4 {[%clk 0:01:32.5]} 29... Nd5 {[%clk 0:01:45.4]} 30. Re1 {[%clk 0:01:28.2]}
30... g5 {[%clk 0:01:39.4]} 31. Rd1 {[%clk 0:01:19.9]} 31... Ke7 {[%clk
0:01:18.9]} 32. Re1 {[%clk 0:01:16.9]} 32... Kf6 {[%clk 0:01:16.9]} 33. Nf5
{[%clk 0:01:02.3]} 33... Rh8 {[%clk 0:01:11.2]} 34. Ng3 {[%clk 0:00:59.6]} 34...
Nf4 {[%clk 0:01:10.3]} 35. Ne4+ {[%clk 0:00:59.3]} 35... Kg6 {[%clk 0:01:08.8]}
36. Re3 {[%clk 0:00:58.6]} 36... b6 {[%clk 0:00:59.2]} 37. Nd2 {[%clk
0:00:50.6]} 37... h5 {[%clk 0:00:57.3]} 38. Nf3 {[%clk 0:00:45.6]} 38... hxg4
{[%clk 0:00:49.9]} 39. Ne5+ {[%clk 0:00:44.3]} 39... Kg7 {[%clk 0:00:46]} 40.
hxg4 {[%clk 0:00:41.1]} 40... Rh1+ {[%clk 0:00:44.9]} 41. Kd2 {[%clk 0:00:38.8]}
41... Rh2+ {[%clk 0:00:44.7]} 42. Kd1 {[%clk 0:00:36.6]} 42... Kf6 {[%clk
0:00:37.2]} 43. Nd7+ {[%clk 0:00:32.3]} 43... Ke7 {[%clk 0:00:36.9]} 44. Nb8
{[%clk 0:00:29.4]} 44... a5 {[%clk 0:00:35.6]} 45. Nc6+ {[%clk 0:00:27.5]} 45...
Kd6 {[%clk 0:00:35.4]} 46. Ne5 {[%clk 0:00:27.4]} 46... Rh1+ {[%clk 0:00:32]}
47. Kd2 {[%clk 0:00:26.8]} 47... Rh2+ {[%clk 0:00:31.7]} 48. Kd1 {[%clk
0:00:26.7]} 48... Ke7 {[%clk 0:00:31.9]} 49. Nf3 {[%clk 0:00:25.5]} 49... Rh1+
{[%clk 0:00:31.6]} 50. Kd2 {[%clk 0:00:25.2]} 50... Kf6 {[%clk 0:00:31.8]} 51.
Ne5 {[%clk 0:00:24.4]} 51... Nd5 {[%clk 0:00:31.6]} 52. Re2 {[%clk 0:00:22.1]}
52... Rh3 {[%clk 0:00:30.6]} 53. Nd7+ {[%clk 0:00:21.3]} 53... Ke7 {[%clk
0:00:30.3]} 54. Ne5 {[%clk 0:00:21.2]} 54... Rg3 {[%clk 0:00:28.6]} 55. Rh2
{[%clk 0:00:18.9]} 55... Kf6 {[%clk 0:00:26.3]} 56. Nd7+ {[%clk 0:00:17.3]}
56... Kg7 {[%clk 0:00:26.3]} 57. Ne5 {[%clk 0:00:17.2]} 57... Nf6 {[%clk
0:00:26.4]} 58. Re2 {[%clk 0:00:15]} 58... Kf8 {[%clk 0:00:14.3]} 59. Ng6+
{[%clk 0:00:13.6]} 59... Kf7 {[%clk 0:00:12.4]} 60. Ne5+ {[%clk 0:00:13.4]}
60... Ke7 {[%clk 0:00:12.2]} 61. Rh2 {[%clk 0:00:13.2]} 61... Nxg4 {[%clk
0:00:11.2]} 62. Rh7+ {[%clk 0:00:12.6]} 62... Kd6 {[%clk 0:00:11.1]} 63. Nf7+
{[%clk 0:00:12.2]} 63... Kc6 {[%clk 0:00:10.4]} 64. Nd8+ {[%clk 0:00:12.3]}
64... Kd5 {[%clk 0:00:07.9]} 65. Rxc7 {[%clk 0:00:11.2]} 65... Ne5 {[%clk
0:00:07.8]} 66. b3 {[%clk 0:00:09.8]} 66... Rg4 {[%clk 0:00:06.6]} 67. Rg7
{[%clk 0:00:08.8]} 67... Rg2+ {[%clk 0:00:06.3]} 68. Kd1 {[%clk 0:00:07.9]}
68... g4 {[%clk 0:00:06.4]} 69. Rg5 {[%clk 0:00:07]} 69... Ke4 {[%clk
0:00:05.7]} 70. Nxe6 {[%clk 0:00:06.4]} 70... g3 {[%clk 0:00:05.6]} 71. c4
{[%clk 0:00:04.5]} 71... Rg1+ {[%clk 0:00:04.9]} 72. Ke2 {[%clk 0:00:04.4]}
72... Rg2+ {[%clk 0:00:04.8]} 73. Kf1 {[%clk 0:00:04.2]} 73... Rf2+ {[%clk
0:00:04.7]} 74. Ke1 {[%clk 0:00:03.5]} 74... Nf3+ {[%clk 0:00:04.8]} 75. Kd1
{[%clk 0:00:03.6]} 75... g2 {[%clk 0:00:04.8]} 76. Rg4+ {[%clk 0:00:02.4]} 76...
Kf5 {[%clk 0:00:04.8]} 77. Rxg2 {[%clk 0:00:02.3]} 77... Rxg2 {[%clk 0:00:04.7]}
78. Nc7 {[%clk 0:00:02.6]} 78... Rd2+ {[%clk 0:00:04.6]} 79. Kc1 {[%clk
0:00:02.9]} 79... Ke5 {[%clk 0:00:04.5]} 80. Nd5 {[%clk 0:00:02.5]} 80... Rxd5
{[%clk 0:00:04.3]} 81. cxd5 {[%clk 0:00:03.4]} 81... Kxd5 {[%clk 0:00:05.2]} 82.
Kc2 {[%clk 0:00:03.8]} 82... Nd4+ {[%clk 0:00:05.5]} 83. Kc3 {[%clk 0:00:04.7]}
83... b5 {[%clk 0:00:05.5]} 84. Kb2 {[%clk 0:00:05.3]} 84... Kc5 {[%clk
0:00:05.1]} 85. Kc3 {[%clk 0:00:04.6]} 85... b4+ {[%clk 0:00:05.3]} 86. axb4+
{[%clk 0:00:04.5]} 86... axb4+ {[%clk 0:00:06.2]} 87. Kb2 {[%clk 0:00:04.9]}
87... Kd5 {[%clk 0:00:06.4]} 88. Ka2 {[%clk 0:00:03.9]} 88... Ke4 {[%clk
0:00:06.5]} 89. Kb2 {[%clk 0:00:04.8]} 89... Kd3 {[%clk 0:00:07.4]} 90. Ka2
{[%clk 0:00:04.4]} 90... Kc3 {[%clk 0:00:07.5]} 91. Ka1 {[%clk 0:00:04.2]} 91...
Nxb3+ {[%clk 0:00:07.4]} 92. Ka2 {[%clk 0:00:04.3]} 92... Nc5 {[%clk 0:00:08.3]}
93. Kb1 {[%clk 0:00:04.3]} 93... b3 {[%clk 0:00:08.3]} 94. Kc1 {[%clk
0:00:04.7]} 94... Na4 {[%clk 0:00:08]} 95. Kb1 {[%clk 0:00:04.6]} 95... Nb6
{[%clk 0:00:08.2]} 96. Kc1 {[%clk 0:00:04.4]} 96... Nc4 {[%clk 0:00:09.1]} 97.
Kb1 {[%clk 0:00:04.4]} 97... Na3+ {[%clk 0:00:08.5]} 98. Ka1 {[%clk 0:00:03.4]}
98... b2+ {[%clk 0:00:08.1]} 99. Ka2 {[%clk 0:00:04.3]} 99... b1=Q+ {[%clk
0:00:08]} 100. Kxa3 {[%clk 0:00:05.2]} 100... Qb3# {[%clk 0:00:08.7]} 0-1

[Event "*** SCC Grand Prix: Titled Tuesday Blitz"]
[Site "Chess.com"]
[Date "2020.09.29"]
[Round "8"]
[White "dpopadic"]
[Black "Omk124"]
[Result "1-0"]
[WhiteElo "2339"]
[BlackElo "2417"]
[TimeControl "180+1"]
[EndTime "11:36:25 PDT"]
[Termination "dpopadic won by resignation"]

1. e4 {[%clk 0:03:00.9]} 1... g6 {[%clk 0:02:59.8]} 2. Nc3 {[%clk 0:03:00.1]}
2... Bg7 {[%clk 0:02:59.4]} 3. f4 {[%clk 0:03:00.2]} 3... c6 {[%clk 0:02:58.9]}
4. Nf3 {[%clk 0:03:00.3]} 4... d6 {[%clk 0:02:59.2]} 5. Bc4 {[%clk 0:02:59]}
5... Nf6 {[%clk 0:02:59.3]} 6. d3 {[%clk 0:02:59]} 6... O-O {[%clk 0:02:59.1]}
7. Bb3 {[%clk 0:02:59]} 7... d5 {[%clk 0:02:57.5]} 8. O-O {[%clk 0:02:58.2]}
8... dxe4 {[%clk 0:02:54.2]} 9. Nxe4 {[%clk 0:02:57.6]} 9... Nxe4 {[%clk
0:02:52.9]} 10. dxe4 {[%clk 0:02:57.5]} 10... Qb6+ {[%clk 0:02:53.6]} 11. Kh1
{[%clk 0:02:56]} 11... Rd8 {[%clk 0:02:53.6]} 12. Qe2 {[%clk 0:02:55.2]} 12...
Bg4 {[%clk 0:02:51.8]} 13. Be3 {[%clk 0:02:53.1]} 13... Qc7 {[%clk 0:02:51.7]}
14. c3 {[%clk 0:02:53.2]} 14... a5 {[%clk 0:02:51.2]} 15. Bxf7+ {[%clk
0:02:44.9]} 15... Kh8 {[%clk 0:02:42.3]} 16. h3 {[%clk 0:02:38.2]} 16... Bxf3
{[%clk 0:02:42.1]} 17. Qxf3 {[%clk 0:02:37.9]} 17... Nd7 {[%clk 0:02:43]} 18.
Qg4 {[%clk 0:02:21.8]} 18... Nf6 {[%clk 0:02:41.2]} 19. Qh4 {[%clk 0:02:09.2]}
19... Nxe4 {[%clk 0:02:31.4]} 20. Bxg6 {[%clk 0:02:06.3]} 20... Nf6 {[%clk
0:02:31.7]} 21. Bd4 {[%clk 0:01:59.7]} 21... Rxd4 {[%clk 0:01:59.3]} 22. cxd4
{[%clk 0:01:57.5]} 22... Rd8 {[%clk 0:01:45.5]} 23. Rad1 {[%clk 0:01:55.5]}
23... Qb6 {[%clk 0:01:42.3]} 24. b3 {[%clk 0:01:45.7]} 24... Kg8 {[%clk
0:01:36.6]} 25. Bb1 {[%clk 0:01:44]} 25... Nd5 {[%clk 0:01:33.4]} 26. Qxh7+
{[%clk 0:01:41.1]} 26... Kf8 {[%clk 0:01:33.3]} 27. Rf3 {[%clk 0:01:26.7]} 27...
Nf6 {[%clk 0:01:29]} 28. Qd3 {[%clk 0:01:15.9]} 28... Nh5 {[%clk 0:01:27.8]} 29.
Qf5+ {[%clk 0:01:06.5]} 29... Nf6 {[%clk 0:01:27.2]} 30. Rfd3 {[%clk 0:01:05.2]}
30... Rd5 {[%clk 0:01:26.7]} 31. Qc8+ {[%clk 0:00:59.9]} 31... Rd8 {[%clk
0:01:25.4]} 32. Qf5 {[%clk 0:00:58.7]} 32... Rd5 {[%clk 0:01:25.2]} 33. Qg6
{[%clk 0:00:58.3]} 33... Qd8 {[%clk 0:01:21.4]} 34. R3d2 {[%clk 0:00:53.1]}
34... Qd6 {[%clk 0:01:19.9]} 35. Qg3 {[%clk 0:00:42.2]} 35... Nh5 {[%clk
0:01:18.7]} 36. Qf3 {[%clk 0:00:41.9]} 36... Nf6 {[%clk 0:01:15.4]} 37. Be4
{[%clk 0:00:38.7]} 37... Rh5 {[%clk 0:01:09.4]} 38. Bg6 {[%clk 0:00:37.9]} 38...
Rd5 {[%clk 0:01:05.5]} 39. f5 {[%clk 0:00:37.6]} 39... Nd7 {[%clk 0:01:03.5]}
40. Qe3 {[%clk 0:00:33.9]} 40... Nf6 {[%clk 0:00:54.2]} 41. Re2 {[%clk
0:00:31.1]} 41... c5 {[%clk 0:00:51.4]} 42. Red2 {[%clk 0:00:28.7]} 42... cxd4
{[%clk 0:00:46.2]} 43. Rxd4 {[%clk 0:00:26.9]} 43... Ng4 {[%clk 0:00:45.7]} 44.
hxg4 {[%clk 0:00:20.3]} 44... Rxd4 {[%clk 0:00:45.8]} 45. Rxd4 {[%clk
0:00:19.2]} 45... Bxd4 {[%clk 0:00:38.1]} 46. Qe4 {[%clk 0:00:15.9]} 46... Be5
{[%clk 0:00:37.5]} 47. Qe1 {[%clk 0:00:13.6]} 47... b6 {[%clk 0:00:36.4]} 48.
Qc1 {[%clk 0:00:12.8]} 48... Kg7 {[%clk 0:00:34.4]} 49. Qe1 {[%clk 0:00:11.3]}
49... Bg3 {[%clk 0:00:33.9]} 50. Qa1+ {[%clk 0:00:09.8]} 50... Kh6 {[%clk
0:00:30.2]} 51. Qc1+ {[%clk 0:00:08]} 51... Bf4 {[%clk 0:00:30.4]} 52. Qe1
{[%clk 0:00:07.6]} 52... Kg5 {[%clk 0:00:30.3]} 53. g3 {[%clk 0:00:06.5]} 53...
Bxg3 {[%clk 0:00:30.3]} 54. Qe3+ {[%clk 0:00:06.3]} 54... Bf4 {[%clk 0:00:29.7]}
55. Qf2 {[%clk 0:00:06]} 55... Qd1+ {[%clk 0:00:29.6]} 56. Kg2 {[%clk
0:00:05.4]} 56... Qxg4+ {[%clk 0:00:29.4]} 57. Kf1 {[%clk 0:00:03.1]} 57... Qh3+
{[%clk 0:00:29.5]} 58. Qg2+ {[%clk 0:00:02.6]} 58... Kh4 {[%clk 0:00:29.2]} 59.
Qxh3+ {[%clk 0:00:01.5]} 59... Kxh3 {[%clk 0:00:30.1]} 60. Ke2 {[%clk
0:00:01.2]} 60... Kg3 {[%clk 0:00:29.5]} 61. Kd3 {[%clk 0:00:01.7]} 61... Bd6
{[%clk 0:00:27.3]} 62. Ke4 {[%clk 0:00:01.3]} 62... Kf2 {[%clk 0:00:26.9]} 63.
a4 {[%clk 0:00:01.2]} 63... Ke2 {[%clk 0:00:27]} 64. Kd5 {[%clk 0:00:01.7]}
64... Kd2 {[%clk 0:00:27.3]} 65. Kc4 {[%clk 0:00:01.7]} 65... Bc5 {[%clk
0:00:27.5]} 66. Bf7 {[%clk 0:00:02.4]} 66... Ke3 {[%clk 0:00:27.5]} 67. Be6
{[%clk 0:00:03.3]} 67... Kf4 {[%clk 0:00:28.2]} 68. Bd7 {[%clk 0:00:04]} 68...
Ke5 {[%clk 0:00:29.1]} 69. Bc8 {[%clk 0:00:04.8]} 69... Kf6 {[%clk 0:00:28.3]}
70. Be6 {[%clk 0:00:05.3]} 70... Kg5 {[%clk 0:00:27.3]} 71. Bc8 {[%clk
0:00:05.6]} 71... Kf4 {[%clk 0:00:28.2]} 72. Be6 {[%clk 0:00:06.2]} 72... Ke5
{[%clk 0:00:29.1]} 73. Bc8 {[%clk 0:00:06.1]} 73... Kf6 {[%clk 0:00:30]} 74. Be6
{[%clk 0:00:06.3]} 74... Bd6 {[%clk 0:00:29.5]} 75. Kd5 {[%clk 0:00:06.3]} 75...
Bb4 {[%clk 0:00:29.6]} 76. Kc4 {[%clk 0:00:06.5]} 76... Bc5 {[%clk 0:00:30.1]}
77. Kd5 {[%clk 0:00:06.7]} 77... Kg5 {[%clk 0:00:30.2]} 78. Kc4 {[%clk
0:00:06.6]} 78... Kf4 {[%clk 0:00:31.1]} 79. Bd7 {[%clk 0:00:06.9]} 79... Ke4
{[%clk 0:00:31.5]} 80. Be6 {[%clk 0:00:07.1]} 80... Ke3 {[%clk 0:00:31.9]} 81.
Bc8 {[%clk 0:00:07.4]} 81... Kd2 {[%clk 0:00:32.3]} 82. Be6 {[%clk 0:00:07.5]}
82... Kc1 {[%clk 0:00:33]} 83. Bd7 {[%clk 0:00:08.1]} 83... Kb2 {[%clk
0:00:33.9]} 84. Be6 {[%clk 0:00:08.4]} 84... Ka3 {[%clk 0:00:34.8]} 85. Bd7
{[%clk 0:00:08.7]} 85... Kb2 {[%clk 0:00:35.1]} 86. Be6 {[%clk 0:00:09.3]} 86...
Kc1 {[%clk 0:00:36]} 87. Bd7 {[%clk 0:00:10.2]} 87... e5 {[%clk 0:00:36]} 88.
fxe6 {[%clk 0:00:09]} 88... Kd2 {[%clk 0:00:36.5]} 89. Bc6 {[%clk 0:00:06.9]}
89... Ke3 {[%clk 0:00:36.5]} 90. Bd5 {[%clk 0:00:05.7]} 90... Kf4 {[%clk
0:00:36.7]} 91. Bc6 {[%clk 0:00:05.6]} 91... Ke5 {[%clk 0:00:37.1]} 92. Bd7
{[%clk 0:00:06.5]} 92... Kd6 {[%clk 0:00:37.4]} 93. Kb5 {[%clk 0:00:07.1]} 93...
Ke7 {[%clk 0:00:37.8]} 94. Kc4 {[%clk 0:00:07.3]} 94... Bg1 {[%clk 0:00:37.6]}
95. Kd5 {[%clk 0:00:07.4]} 95... Bf2 {[%clk 0:00:38.1]} 96. Kc6 {[%clk
0:00:07.6]} 96... Bc5 {[%clk 0:00:38.2]} 97. Kc7 {[%clk 0:00:07.9]} 97... Bg1
{[%clk 0:00:38.4]} 98. Kc6 {[%clk 0:00:08.3]} 98... Bc5 {[%clk 0:00:38.6]} 99.
Kd5 {[%clk 0:00:08.6]} 99... Bg1 {[%clk 0:00:38.7]} 100. Kc4 {[%clk 0:00:09.3]}
100... Bc5 {[%clk 0:00:38.7]} 101. Kb5 {[%clk 0:00:09.5]} 101... Bg1 {[%clk
0:00:39.1]} 102. b4 {[%clk 0:00:09.3]} 102... axb4 {[%clk 0:00:39.3]} 103. Kxb4
{[%clk 0:00:09.6]} 103... Bc5+ {[%clk 0:00:40]} 104. Kc4 {[%clk 0:00:09.9]}
104... Bg1 {[%clk 0:00:40.9]} 105. Kb5 {[%clk 0:00:10.1]} 105... Bc5 {[%clk
0:00:41.1]} 106. a5 {[%clk 0:00:09.8]} 106... Kd6 {[%clk 0:00:31]} 107. axb6
{[%clk 0:00:05.5]} 107... Bg1 {[%clk 0:00:30.4]} 108. Ka6 {[%clk 0:00:03.6]}
108... Bf2 {[%clk 0:00:28.5]} 109. b7 {[%clk 0:00:03.1]} 109... Kc7 {[%clk
0:00:22.3]} 110. e7 {[%clk 0:00:03.1]} 110... Kxd7 {[%clk 0:00:22.8]} 111. b8=Q
{[%clk 0:00:02.3]} 111... Kxe7 {[%clk 0:00:23.1]} 112. Qe5+ {[%clk 0:00:02.2]}
112... Kd7 {[%clk 0:00:23]} 113. Qd5+ {[%clk 0:00:01.8]} 113... Kc7 {[%clk
0:00:23.5]} 114. Qe5+ {[%clk 0:00:01.5]} 114... Kc6 {[%clk 0:00:23.4]} 115. Qf6+
{[%clk 0:00:01.6]} 115... Kd5 {[%clk 0:00:23.5]} 116. Qxf2 {[%clk 0:00:02.3]}
116... Ke4 {[%clk 0:00:24]} 117. Qb6 {[%clk 0:00:02.9]} 117... Kd3 {[%clk
0:00:24.2]} 118. Kb5 {[%clk 0:00:03.8]} 118... Kc3 {[%clk 0:00:24.2]} 119. Qc6+
{[%clk 0:00:04.7]} 119... Kb3 {[%clk 0:00:25.1]} 120. Qc5 {[%clk 0:00:05.3]}
120... Ka2 {[%clk 0:00:25.2]} 121. Qc4+ {[%clk 0:00:05.9]} 121... Ka1 {[%clk
0:00:26.1]} 122. Kc5 {[%clk 0:00:06.1]} 122... Kb2 {[%clk 0:00:26]} 123. Kd4
{[%clk 0:00:06.5]} 123... Ka1 {[%clk 0:00:26.9]} 124. Qb5 {[%clk 0:00:06.1]}
124... Ka2 {[%clk 0:00:27]} 125. Kd3 {[%clk 0:00:06.7]} 125... Ka3 {[%clk
0:00:27.9]} 126. Kc3 {[%clk 0:00:06.8]} 126... Ka2 {[%clk 0:00:28.8]} 1-0